fUSD/lending_fUSD_20240225
["ID","MTS","AMOUNT","RATE_DAILY","PERIOD"]
[315141612,1708887077575,-795.51,0.00023998,2]
[315141613,1708887077585,-1244.46,0.00023998,2]
[315141614,1708887077596,-500.0,0.00023998,2]
[315141615,1708887077606,-795.51,0.00023998,2]
[315141616,1708887077617,-500.0,0.00023998,2]
[315141617,1708887077626,-1244.46,0.00023998,2]
[315141618,1708887077636,-500.0,0.00023998,2]
[315141619,1708887077645,-785.07,0.00023998,2]
[315141620,1708887077657,-500.0,0.00023998,2]
[315141621,1708887077667,-1244.46,0.00023998,2]
[315141622,1708887077676,-500.0,0.00023998,2]
[315141623,1708887077685,-785.07,0.00023998,2]
[315141624,1708887077694,-795.51,0.00023998,2]
[315141625,1708887077704,-500.0,0.00023998,2]
[315141626,1708887077713,-1244.63876869,0.00023998,2]
[315141627,1708887077723,-500.0,0.00023998,2]
[315141628,1708887077733,-785.07,0.00023998,2]
[315141629,1708887077743,-795.61505546,0.00023998,2]
[315141630,1708887077752,-500.0,0.00023998,2]
[315141631,1708887077762,-500.0,0.00023998,2]
[315141632,1708887077772,-785.07,0.00023998,2]
[315141633,1708887077781,-500.0,0.00023998,2]
[315141634,1708887077791,-500.0,0.00023998,2]
[315141635,1708887077800,-785.07,0.00023998,2]
[315141636,1708887077810,-500.0,0.00023998,2]
[315141637,1708887077820,-785.07,0.00023998,2]
[315141638,1708887077830,-500.0,0.00023998,2]
[315141639,1708887077839,-785.07,0.00023998,2]
[315141640,1708887077849,-500.0,0.00023998,2]
[315141641,1708887077860,-500.0,0.00023998,2]
[315141642,1708887077870,-785.07,0.00023998,2]
[315141643,1708887077880,-500.0,0.00023998,2]
[315141644,1708887077890,-379.01121308,0.00023998,2]
[315141645,1708887077900,-785.07,0.00023998,2]
[315141646,1708887077911,-500.0,0.00023998,2]
[315141647,1708887077920,-785.07,0.00023998,2]
[315141648,1708887077931,-500.0,0.00023998,2]
[315141649,1708887077941,-785.07,0.00023998,2]
[315141650,1708887077951,-273.35365429,0.00023998,2]
[315141651,1708887077961,-893.55,0.00023998,2]
[315141652,1708887077971,-570.08,0.00023998,2]
[315141653,1708887077981,-893.55,0.00023998,2]
[315141654,1708887077992,-570.08,0.00023998,2]
[315141655,1708887078003,-893.55,0.00023998,2]
[315141656,1708887078013,-570.08,0.00023998,2]
[315141657,1708887078023,-893.55,0.00023998,2]
[315141658,1708887078033,-570.08,0.00023998,2]
[315141659,1708887078043,-817.65,0.00023998,2]
[315141660,1708887078053,-893.55,0.00023998,2]
[315141661,1708887078063,-570.08,0.00023998,2]
[315141662,1708887078073,-2338.71,0.00023998,2]
[315141663,1708887078083,-817.65,0.00023998,2]
[315141664,1708887078093,-893.55,0.00023998,2]
[315141665,1708887078104,-2338.71,0.00023998,2]
[315141666,1708887078114,-893.55,0.00023998,2]
[315141667,1708887078124,-570.08,0.00023998,2]
[315141668,1708887078134,-3366.05,0.00023998,2]
[315141669,1708887078144,-893.55,0.00023998,2]
[315141670,1708887078155,-570.08,0.00023998,2]
[315141671,1708887078164,-817.65,0.00023998,2]
[315141672,1708887078175,-3366.05,0.00023998,2]
[315141673,1708887078184,-893.55,0.00023998,2]
[315141674,1708887078194,-570.08,0.00023998,2]
[315141675,1708887078205,-817.65,0.00023998,2]
[315141676,1708887078216,-3366.05,0.00023998,2]
[315141677,1708887078226,-2338.71,0.00023998,2]
[315141678,1708887078236,-893.55,0.00023998,2]
[315141679,1708887078247,-570.08,0.00023998,2]
[315141680,1708887078257,-782.53,0.00023998,2]
[315141681,1708887078267,-817.65,0.00023998,2]
[315141682,1708887078281,-3366.05,0.00023998,2]
[315141683,1708887078291,-2338.71,0.00023998,2]
[315141684,1708887078302,-893.55,0.00023998,2]
[315141685,1708887078313,-817.65,0.00023998,2]
[315141686,1708887078324,-782.53,0.00023998,2]
[315141687,1708887078335,-570.08,0.00023998,2]
[315141688,1708887078345,-3366.05,0.00023998,2]
[315141689,1708887078355,-893.55,0.00023998,2]
[315141690,1708887078366,-817.65,0.00023998,2]
[315141691,1708887078376,-570.08,0.00023998,2]
[315141692,1708887078387,-782.53,0.00023998,2]
[315141693,1708887078397,-3366.05,0.00023998,2]
[315141694,1708887078408,-893.55,0.00023998,2]
[315141695,1708887078418,-2338.71,0.00023998,2]
[315141696,1708887078428,-782.53,0.00023998,2]
[315141697,1708887078438,-570.22516184,0.00023998,2]
[315141698,1708887078450,-817.65,0.00023998,2]
[315141699,1708887078460,-3366.05,0.00023998,2]
[315141700,1708887078472,-893.55,0.00023998,2]
[315141701,1708887078483,-2338.71,0.00023998,2]
[315141702,1708887078493,-782.53,0.00023998,2]
[315141703,1708887078503,-817.65,0.00023998,2]
[315141704,1708887078514,-3366.05,0.00023998,2]
[315141705,1708887078527,-893.55,0.00023998,2]
[315141706,1708887078537,-2338.71,0.00023998,2]
[315141707,1708887078549,-782.53,0.00023998,2]
[315141708,1708887078565,-893.55,0.00023998,2]
[315141709,1708887078574,-3366.05,0.00023998,2]
[315141710,1708887078585,-2338.71,0.00023998,2]
[315141711,1708887078597,-817.65,0.00023998,2]
[315141712,1708887078609,-893.55,0.00023998,2]
[315141713,1708887078619,-782.53,0.00023998,2]
[315141714,1708887078631,-3366.05,0.00023998,2]
[315141715,1708887078642,-2338.71,0.00023998,2]
[315141716,1708887078652,-817.65,0.00023998,2]
[315141717,1708887078663,-893.55,0.00023998,2]
[315141718,1708887078673,-782.53,0.00023998,2]
[315141719,1708887078683,-3366.05,0.00023998,2]
[315141720,1708887078693,-817.65,0.00023998,2]
[315141721,1708887078704,-2338.71,0.00023998,2]
[315141722,1708887078714,-893.55,0.00023998,2]
[315141723,1708887078723,-782.53,0.00023998,2]
[315141724,1708887078733,-3366.05,0.00023998,2]
[315141725,1708887078743,-2338.71,0.00023998,2]
[315141726,1708887078753,-817.65,0.00023998,2]
[315141727,1708887078762,-893.55,0.00023998,2]
[315141728,1708887078774,-782.53,0.00023998,2]
[315141729,1708887078783,-3366.05,0.00023998,2]
[315141730,1708887078793,-2338.71,0.00023998,2]
[315141731,1708887078802,-893.67029405,0.00023998,2]
[315141732,1708887078812,-817.65,0.00023998,2]
[315141733,1708887078821,-782.53,0.00023998,2]
[315141734,1708887078830,-3366.07258963,0.00023998,2]
[315141735,1708887078840,-2338.71,0.00023998,2]
[315141736,1708887078849,-817.78349171,0.00023998,2]
[315141737,1708887078858,-782.53,0.00023998,2]
[315141738,1708887078868,-2338.71,0.00023998,2]
[315141739,1708887078878,-2338.71,0.00023998,2]
[315141740,1708887078888,-782.53,0.00023998,2]
[315141741,1708887078899,-2338.71,0.00023998,2]
[315141742,1708887078908,-782.53,0.00023998,2]
[315141743,1708887078918,-2338.71,0.00023998,2]
[315141744,1708887078928,-782.53,0.00023998,2]
[315141745,1708887078937,-782.53,0.00023998,2]
[315141746,1708887078947,-782.53,0.00023998,2]
[315141747,1708887078957,-782.53,0.00023998,2]
[315141748,1708887078967,-782.53,0.00023998,2]
[315141749,1708887078976,-782.53,0.00023998,2]
[315141750,1708887078986,-782.63969435,0.00023998,2]
[315141751,1708887078996,-685.85,0.00023998,2]
[315141752,1708887079007,-685.85,0.00023998,2]
[315141753,1708887079017,-685.85,0.00023998,2]
[315141754,1708887079028,-685.85,0.00023998,2]
[315141755,1708887079038,-500.0,0.00023998,2]
[315141756,1708887079048,-685.85,0.00023998,2]
[315141757,1708887079058,-685.85,0.00023998,2]
[315141758,1708887079067,-572.18247509,0.00023998,2]
[315141759,1708887079076,-685.85,0.00023998,2]
[315141760,1708887079086,-4215.53,0.00023998,2]
[315141761,1708887079095,-685.85,0.00023998,2]
[315141762,1708887079105,-4215.53,0.00023998,2]
[315141763,1708887079114,-685.85,0.00023998,2]
[315141764,1708887079123,-4215.53,0.00023998,2]
[315141765,1708887079132,-685.85,0.00023998,2]
[315141766,1708887079141,-4215.53,0.00023998,2]
[315141767,1708887079150,-685.85,0.00023998,2]
[315141768,1708887079159,-4215.53,0.00023998,2]
[315141769,1708887079169,-604.64,0.00023998,2]
[315141770,1708887079178,-685.85,0.00023998,2]
[315141771,1708887079188,-4215.53,0.00023998,2]
[315141772,1708887079197,-604.64,0.00023998,2]
[315141773,1708887079207,-685.85,0.00023998,2]
[315141774,1708887079217,-4215.53,0.00023998,2]
[315141775,1708887079227,-604.64,0.00023998,2]
[315141776,1708887079236,-500.0,0.00023998,2]
[315141777,1708887079311,-685.85,0.00023998,2]
[315141778,1708887079321,-500.0,0.00023998,2]
[315141779,1708887079330,-500.0,0.00023998,2]
[315141780,1708887079340,-604.64,0.00023998,2]
[315141781,1708887079350,-685.85,0.00023998,2]
[315141782,1708887079359,-500.0,0.00023998,2]
[315141783,1708887079368,-500.0,0.00023998,2]
[315141784,1708887079378,-604.64,0.00023998,2]
[315141785,1708887079387,-685.85,0.00023998,2]
[315141786,1708887079397,-500.0,0.00023998,2]
[315141787,1708887079406,-500.0,0.00023998,2]
[315141788,1708887079415,-4215.53,0.00023998,2]
[315141789,1708887079425,-604.64,0.00023998,2]
[315141790,1708887079434,-685.85,0.00023998,2]
[315141791,1708887079443,-500.0,0.00023998,2]
[315141792,1708887079452,-604.64,0.00023998,2]
[315141793,1708887079462,-500.0,0.00023998,2]
[315141794,1708887079471,-4215.53,0.00023998,2]
[315141795,1708887079481,-685.85,0.00023998,2]
[315141796,1708887079490,-500.0,0.00023998,2]
[315141797,1708887079499,-604.64,0.00023998,2]
[315141798,1708887079508,-4215.53,0.00023998,2]
[315141799,1708887079517,-500.0,0.00023998,2]
[315141800,1708887079527,-685.85,0.00023998,2]
[315141801,1708887079537,-500.0,0.00023998,2]
[315141802,1708887079548,-4215.53,0.00023998,2]
[315141803,1708887079558,-500.0,0.00023998,2]
[315141804,1708887079567,-604.64,0.00023998,2]
[315141805,1708887079576,-430.93915119,0.00023998,2]
[315141806,1708887079680,-254.91084881,0.00023998,2]
[315141807,1708887079690,-414.51113166,0.00023998,2]
[315141808,1708887080086,-500.0,0.00023997,2]
[315141809,1708887080095,-500.0,0.00023997,2]
[315141810,1708887080104,-500.0,0.00023997,2]
[315141811,1708887080113,-500.0,0.00023997,2]
[315141812,1708887080123,-500.0,0.00023997,2]
[315141813,1708887080133,-500.0,0.00023997,2]
[315141814,1708887080142,-481.65304725,0.00023997,2]
[315141815,1708887080152,-144.27430226,0.00023998,2]
[315141816,1708887080161,-4215.53,0.00023998,2]
[315141817,1708887080171,-500.0,0.00023998,2]
[315141818,1708887080181,-604.64,0.00023998,2]
[315141819,1708887080190,-685.89112791,0.00023998,2]
[315141820,1708887080200,-4215.53,0.00023998,2]
[315141821,1708887080211,-500.0,0.00023998,2]
[315141822,1708887080221,-604.64,0.00023998,2]
[315141823,1708887080231,-4215.63983849,0.00023998,2]
[315141824,1708887080240,-500.0,0.00023998,2]
[315141825,1708887080249,-604.64,0.00023998,2]
[315141826,1708887080259,-604.64,0.00023998,2]
[315141827,1708887080269,-500.0,0.00023998,2]
[315141828,1708887080280,-500.0,0.00023998,2]
[315141829,1708887080290,-604.64,0.00023998,2]
[315141830,1708887080301,-500.0,0.00023998,2]
[315141831,1708887080311,-416.85570944,0.00023998,2]
[315141832,1708887080321,-604.64,0.00023998,2]
[315141833,1708887080331,-604.64,0.00023998,2]
[315141834,1708887080342,-604.64,0.00023998,2]
[315141835,1708887080352,-604.64,0.00023998,2]
[315141836,1708887080361,-604.64,0.00023998,2]
[315141837,1708887080372,-604.64,0.00023998,2]
[315141838,1708887080382,-500.0,0.00023998,2]
[315141839,1708887080393,-604.82337285,0.00023998,2]
[315141840,1708887080403,-4638.23,0.00023998,2]
[315141841,1708887080413,-500.0,0.00023998,2]
[315141842,1708887080423,-1521.18499676,0.00023998,2]
[315141843,1708887080437,-3117.04500324,0.00023998,2]
[315141844,1708887080447,-500.0,0.00023998,2]
[315141845,1708887080458,-500.0,0.00023998,2]
[315141846,1708887080468,-4638.23,0.00023998,2]
[315141847,1708887080479,-500.0,0.00023998,2]
[315141848,1708887080490,-500.0,0.00023998,2]
[315141849,1708887080500,-4638.23,0.00023998,2]
[315141850,1708887080511,-500.0,0.00023998,2]
[315141851,1708887080522,-500.0,0.00023998,2]
[315141852,1708887080532,-4638.23,0.00023998,2]
[315141853,1708887080543,-500.0,0.00023998,2]
[315141854,1708887080553,-442.98624721,0.00023998,2]
[315141855,1708887080564,-1194.07,0.00023998,2]
[315141856,1708887080576,-4638.23,0.00023998,2]
[315141857,1708887080586,-500.0,0.00023998,2]
[315141858,1708887080596,-4195.44048578,0.00023998,2]
[315141859,1708887082095,4380.48,0.00023108,2]
[315141860,1708887085368,9444075.62016612,0.00023,2]
[315141861,1708887085391,114725.99683548,0.00023,2]
[315141862,1708887085411,1617150.0082926,0.00023,2]
[315141863,1708887085985,429.36,0.00021176,2]
[315141864,1708887114297,37083.607213,0.0002276,2]
[315141865,1708887219450,167.98,0.0002293,2]
[315141867,1708887232376,2615636.32785458,0.00023,2]
[315141868,1708887291636,163.92,0.00022913,2]
[315141869,1708887295625,699.09,0.00022894,2]
[315141870,1708887348009,162.88540489,0.00022871,2]
[315141871,1708887417427,1563.72644835,0.00022871,2]
[315141872,1708887433430,1563.72644835,0.00022871,2]
[315141873,1708887453415,1563.72644835,0.00022871,2]
[315141874,1708887465068,1035.0,0.00023,2]
[315141876,1708887472880,491.26,0.00022855,2]
[315141877,1708887491512,651.61,0.00022837,2]
[315141878,1708887539955,200.0,0.0002284,2]
[315141880,1708887561599,10595.43,0.00022831,2]
[315141881,1708887562239,486.24,0.00020914,2]
[315141882,1708887575926,161.04029594,0.00022921,2]
[315141884,1708887745079,162.74,0.00022789,2]
[315141885,1708887796543,582.57,0.00022798,2]
[315141886,1708887844363,205.0,0.00022021,2]
[315141887,1708887871521,150.0,0.00022998,2]
[315141889,1708887907442,159.9,0.00022931,2]
[315141890,1708887931962,63627.5180956,0.00023,2]
[315141891,1708887954101,152.58,0.00022772,2]
[315141892,1708887959446,500.0,0.00023,2]
[315141893,1708887964618,478.71,0.00022777,2]
[315141894,1708887976017,300.0,0.00022998,2]
[315141895,1708888008727,150.0,0.00022635,2]
[315141896,1708888019298,245.63,0.00022763,2]
[315141903,1708888164644,461.92,0.00020896,2]
[315141916,1708888231593,-1563.72644835,0.00023015,2]
[315141917,1708888231603,-150.0,0.00023015,2]
[315141918,1708888231613,-1023.56840929,0.00023016,2]
[315141919,1708888231623,-1023.56840929,0.00023016,2]
[315141920,1708888231632,-1023.56840929,0.00023016,2]
[315141921,1708888231641,-1023.56840929,0.00023016,2]
[315141922,1708888231650,-1023.56840929,0.00023016,2]
[315141923,1708888231659,-1023.56840929,0.00023016,2]
[315141924,1708888231669,-205.0,0.0002302,2]
[315141925,1708888231678,-2824.683027,0.00023111,2]
[315141926,1708888231687,-461.92,0.0002316,2]
[315141927,1708888231696,-598.69370516,0.000232,2]
[315141928,1708888231705,-1928.67681243,0.00023273,2]
[315141929,1708888231716,-1004.32318757,0.00023273,2]
[315141930,1708888231726,-300.0,0.0002334,2]
[315141931,1708888231736,-10337.0013,0.0002334,2]
[315141932,1708888231745,-152.58,0.00023342,2]
[315141933,1708888231754,-1779.96,0.00023487,2]
[315141934,1708888231763,-1735.13551238,0.0002349,2]
[315141935,1708888231784,-505.7052,0.0002349,2]
[315141937,1708888231887,-10861.68397736,0.0002349,2]
[315141939,1708888231901,-15560.3246694,0.0002349,2]
[315141942,1708888231914,-739.72808897,0.0002349,2]
[315141944,1708888231930,-562.1802,0.0002349,2]
[315142040,1708888233226,5865.69055944,0.00023,2]
[315142047,1708888237512,-1236.04046842,0.0002349,2]
[315142048,1708888237524,-337.7925435,0.0002349,2]
[315142049,1708888237566,-8674.2252357,0.0002349,2]
[315142050,1708888237578,-384.90776777,0.0002349,2]
[315142051,1708888237590,-1442.11451263,0.0002349,2]
[315142052,1708888237602,-1273.19236374,0.0002349,2]
[315142053,1708888237613,-1254.48307782,0.0002349,2]
[315142054,1708888237625,-2490.97927769,0.0002349,2]
[315142055,1708888237642,-795.68932013,0.0002349,2]
[315142056,1708888237652,-215.34467843,0.00023498,2]
[315142057,1708888237678,-1559.46532157,0.00023498,2]
[315142058,1708888237687,-499.99,0.00023498,2]
[315142059,1708888237697,-14537.0,0.000235,2]
[315142060,1708888237707,-3101.0,0.000235,2]
[315142061,1708888237717,-1500.0,0.000235,2]
[315142062,1708888237726,-8081.15868973,0.00023517,2]
[315142063,1708888237737,-1110.42093385,0.00023517,2]
[315142064,1708888237747,-209.33113169,0.00023546,2]
[315142065,1708888237758,-327.68,0.0002359,2]
[315142066,1708888237767,-26.95337448,0.000236,2]
[315142067,1708888237779,-891.41662552,0.000236,2]
[315142068,1708888237789,-123.58337448,0.0002365,2]
[315142069,1708888237806,-1909.11362552,0.0002365,2]
[315142070,1708888237815,-163.92,0.00023677,2]
[315142071,1708888237825,-500.0,0.000237,2]
[315142072,1708888237835,-26173.97294743,0.0002376,2]
[315142073,1708888237844,-361.71014229,0.00023798,2]
[315142074,1708888237854,-1103.88000021,0.00023798,2]
[315142075,1708888237863,-361.71014229,0.00023799,2]
[315142076,1708888237873,-1103.88000012,0.00023799,2]
[315142077,1708888237882,-500.0,0.000238,2]
[315142078,1708888237892,-200.0,0.00023808,2]
[315142079,1708888237906,-361.71014229,0.00023811,2]
[315142080,1708888237915,-1103.88000012,0.00023811,2]
[315142081,1708888237925,-361.71014229,0.00023824,2]
[315142082,1708888237934,-1103.88000012,0.00023824,2]
[315142083,1708888237945,-361.71014229,0.00023837,2]
[315142084,1708888237954,-1103.88000012,0.00023837,2]
[315142085,1708888237964,-361.71014229,0.00023849,2]
[315142086,1708888237974,-1103.88000012,0.00023849,2]
[315142087,1708888237987,-361.71014229,0.00023862,2]
[315142088,1708888237997,-1103.88000012,0.00023862,2]
[315142089,1708888238006,-361.71014229,0.00023875,2]
[315142090,1708888238015,-759.65044374,0.00023885,2]
[315142091,1708888238026,-516.56463468,0.00023886,2]
[315142092,1708888238036,-33712.0066,0.00023886,2]
[315142093,1708888238045,-500.0,0.00023886,2]
[315142094,1708888238056,-1000.0,0.00023886,2]
[315142095,1708888238065,-5000.0,0.00023886,2]
[315142096,1708888238079,-361.71014229,0.00023887,2]
[315142097,1708888238089,-759.6504437,0.00023888,2]
[315142098,1708888238099,-19905.0,0.0002389,2]
[315142099,1708888238108,-2296.0,0.0002389,2]
[315142100,1708888238118,-1040.0,0.0002389,2]
[315142101,1708888238128,-759.6504437,0.00023891,2]
[315142102,1708888238138,-759.6504437,0.00023894,2]
[315142103,1708888238147,-184.67087336,0.00023895,2]
[315142104,1708888238157,-15229.7065,0.00023897,2]
[315142105,1708888238167,-1711.9251,0.00023897,2]
[315142106,1708888238176,-9462.0885,0.00023897,2]
[315142107,1708888238187,-500.25795449,0.00023897,2]
[315142108,1708888238197,-649.78,0.00023897,2]
[315142109,1708888238207,-500.0,0.00023897,2]
[315142110,1708888238217,-500.0,0.00023897,2]
[315142111,1708888238226,-500.0,0.00023897,2]
[315142112,1708888238236,-500.0,0.00023897,2]
[315142113,1708888238246,-500.0,0.00023897,2]
[315142114,1708888238257,-500.0,0.00023897,2]
[315142115,1708888238266,-500.0,0.00023897,2]
[315142116,1708888238276,-500.0,0.00023897,2]
[315142117,1708888238286,-500.0,0.00023897,2]
[315142118,1708888238296,-500.0,0.00023897,2]
[315142119,1708888238306,-500.0,0.00023897,2]
[315142120,1708888238316,-500.0,0.00023897,2]
[315142121,1708888238326,-500.0,0.00023897,2]
[315142122,1708888238335,-882.06,0.00023897,2]
[315142123,1708888238349,-500.0,0.00023897,2]
[315142124,1708888238358,-759.6504437,0.00023897,2]
[315142125,1708888238368,-500.0,0.00023897,2]
[315142126,1708888238378,-500.0,0.00023897,2]
[315142127,1708888238387,-500.0,0.00023897,2]
[315142128,1708888238397,-500.0,0.00023897,2]
[315142129,1708888238406,-500.0,0.00023897,2]
[315142130,1708888238415,-500.0,0.00023897,2]
[315142131,1708888238425,-500.0,0.00023897,2]
[315142132,1708888238435,-500.0,0.00023897,2]
[315142133,1708888238444,-500.0,0.00023897,2]
[315142134,1708888238454,-500.0,0.00023897,2]
[315142135,1708888238463,-500.0,0.00023897,2]
[315142136,1708888238473,-500.0,0.00023897,2]
[315142137,1708888238482,-500.0,0.00023897,2]
[315142138,1708888238492,-500.0,0.00023897,2]
[315142139,1708888238502,-500.25795442,0.00023897,2]
[315142140,1708888238511,-500.25795442,0.00023898,2]
[315142141,1708888238521,-500.25795442,0.00023898,2]
[315142142,1708888238531,-500.25795442,0.00023898,2]
[315142143,1708888238541,-500.25795442,0.00023898,2]
[315142144,1708888238550,-500.25795442,0.00023899,2]
[315142145,1708888238559,-500.25795442,0.00023899,2]
[315142146,1708888238569,-500.25795442,0.00023899,2]
[315142147,1708888238579,-500.25795442,0.00023899,2]
[315142148,1708888238589,-500.25795442,0.000239,2]
[315142149,1708888238598,-500.25795442,0.000239,2]
[315142150,1708888238608,-500.0,0.000239,2]
[315142151,1708888238618,-361.71014229,0.000239,2]
[315142152,1708888238627,-516.56463468,0.000239,2]
[315142153,1708888238638,-152.58,0.00023911,2]
[315142154,1708888238647,-162.74,0.00023929,2]
[315142155,1708888238656,-153.069,0.00023959,2]
[315142156,1708888238666,-169.866,0.00023959,2]
[315142157,1708888238675,-956.0,0.00023959,2]
[315142158,1708888238685,-534.0,0.00023959,2]
[315142159,1708888238695,-1231.0,0.00023959,2]
[315142160,1708888238705,-1258.0,0.00023959,2]
[315142161,1708888238715,-217.0,0.00023959,2]
[315142162,1708888238725,-398.782,0.00023959,2]
[315142163,1708888238735,-336.0,0.00023959,2]
[315142164,1708888238745,-1201.385,0.00023959,2]
[315142165,1708888238755,-322.0,0.00023959,2]
[315142166,1708888238765,-162.0,0.00023959,2]
[315142167,1708888238774,-1500.0,0.00023969,2]
[315142168,1708888238784,-800.0,0.00023973,2]
[315142169,1708888238794,-192.46705866,0.00023975,2]
[315142170,1708888238803,-500.94,0.00023983,2]
[315142171,1708888238813,-500.0,0.00023983,2]
[315142172,1708888238822,-500.0,0.00023983,2]
[315142173,1708888238832,-500.0,0.00023983,2]
[315142174,1708888238842,-500.0,0.00023983,2]
[315142175,1708888238852,-500.0,0.00023983,2]
[315142176,1708888238862,-500.0,0.00023983,2]
[315142177,1708888238872,-500.0,0.00023983,2]
[315142178,1708888238881,-500.0,0.00023983,2]
[315142179,1708888238892,-500.0,0.00023983,2]
[315142180,1708888238902,-500.0,0.00023983,2]
[315142181,1708888238914,-843.52,0.00023983,2]
[315142182,1708888238923,-1302.1,0.00023983,2]
[315142183,1708888238933,-500.0,0.00023983,2]
[315142184,1708888238943,-500.0,0.00023983,2]
[315142185,1708888238954,-500.0,0.00023983,2]
[315142186,1708888238965,-500.0,0.00023983,2]
[315142187,1708888238975,-500.0,0.00023983,2]
[315142188,1708888238984,-500.0,0.00023983,2]
[315142189,1708888238995,-500.0,0.00023983,2]
[315142190,1708888239006,-500.0,0.00023983,2]
[315142191,1708888239016,-500.0,0.00023983,2]
[315142192,1708888239025,-500.0,0.00023983,2]
[315142193,1708888239035,-500.0,0.00023983,2]
[315142194,1708888239044,-2840.92,0.00023983,2]
[315142195,1708888239054,-500.0,0.00023983,2]
[315142196,1708888239064,-708.07,0.00023983,2]
[315142197,1708888239074,-500.0,0.00023983,2]
[315142198,1708888239083,-500.0,0.00023983,2]
[315142199,1708888239093,-3533.16,0.00023983,2]
[315142200,1708888239102,-500.0,0.00023983,2]
[315142201,1708888239111,-500.0,0.00023983,2]
[315142202,1708888239120,-836.2,0.00023983,2]
[315142203,1708888239129,-500.0,0.00023983,2]
[315142204,1708888239139,-500.0,0.00023983,2]
[315142205,1708888239148,-500.0,0.00023983,2]
[315142206,1708888239171,-500.0,0.00023983,2]
[315142207,1708888239181,-500.0,0.00023983,2]
[315142208,1708888239191,-500.0,0.00023983,2]
[315142209,1708888239200,-500.0,0.00023983,2]
[315142210,1708888239210,-500.0,0.00023984,2]
[315142211,1708888239220,-500.0,0.00023984,2]
[315142212,1708888239230,-2117.57,0.00023984,2]
[315142213,1708888239240,-1545.6,0.00023984,2]
[315142214,1708888239251,-500.0,0.00023984,2]
[315142215,1708888239261,-500.0,0.00023984,2]
[315142216,1708888239270,-500.0,0.00023984,2]
[315142217,1708888239279,-500.0,0.00023984,2]
[315142218,1708888239288,-500.0,0.00023984,2]
[315142219,1708888239298,-500.0,0.00023984,2]
[315142220,1708888239307,-500.0,0.00023984,2]
[315142221,1708888239316,-500.0,0.00023984,2]
[315142222,1708888239326,-975.43,0.00023984,2]
[315142223,1708888239336,-500.0,0.00023984,2]
[315142224,1708888239345,-500.0,0.00023984,2]
[315142225,1708888239355,-1044.81,0.00023984,2]
[315142226,1708888239364,-882.06,0.00023984,2]
[315142227,1708888239374,-500.0,0.00023984,2]
[315142229,1708888239383,-500.0,0.00023984,2]
[315142230,1708888239393,-500.0,0.00023984,2]
[315142231,1708888239402,-500.0,0.00023984,2]
[315142232,1708888239411,-617.7,0.00023984,2]
[315142233,1708888239421,-500.0,0.00023984,2]
[315142234,1708888239430,-500.0,0.00023984,2]
[315142235,1708888239439,-1541.56,0.00023984,2]
[315142236,1708888239449,-597.9,0.00023984,2]
[315142237,1708888239458,-500.0,0.00023984,2]
[315142238,1708888239468,-612.59566212,0.00023984,2]
[315142239,1708888239477,-670.49,0.00023984,2]
[315142240,1708888239487,-500.0,0.00023984,2]
[315142241,1708888239497,-500.0,0.00023984,2]